[Event "Titled Tuesday Blitz May 16 Late 2023"]
[White "Mortazavi, Ali"]
[Black "De Souza, Cristiano Gomes"]
[WhiteFideId "401323"]
[BlackFideId "2151758"]
[WhiteElo "2339"]
[BlackElo "2068"]
[Result "1-0"]
[Round "03"]
[TimeControl "180+2"]
[Date "2023.05.16"]
[WhiteClock "0:00:41"]
[BlackClock "0:00:40"]

1. Nf3 {[%clk 0:03:00]}  Nf6 {[%clk 0:02:54]} 2. g3 {[%clk 0:03:00]}  g6 {[%clk 0:02:50]} 3. Bg2 {[%clk 0:03:01]}  Bg7 {[%clk 0:02:46]} 4. O-O {[%clk 0:03:02]}  O-O {[%clk 0:02:46]} 5. d3 {[%clk 0:03:03]}  d5 {[%clk 0:02:46]} 6. Nbd2 {[%clk 0:03:02]}  c5 {[%clk 0:02:45]} 7. e3 {[%clk 0:03:02]}  Nc6 {[%clk 0:02:45]} 8. e4 {[%clk 0:03:03]}  dxe4 {[%clk 0:02:44]} 9. dxe4 {[%clk 0:03:03]}  h6 {[%clk 0:02:42]} 10. Re1 {[%clk 0:02:50]}  Be6 {[%clk 0:02:40]} 11. c3 {[%clk 0:02:35]}  Qc7 {[%clk 0:02:39]} 12. Qe2 {[%clk 0:02:32]}  Rad8 {[%clk 0:02:37]} 13. h3 {[%clk 0:02:09]}  Qb8 {[%clk 0:02:35]} 14. a4 {[%clk 0:02:00]}  b6 {[%clk 0:02:32]} 15. Nc4 {[%clk 0:01:58]}  Bxc4 {[%clk 0:02:28]} 16. Qxc4 {[%clk 0:01:58]}  Ne5 {[%clk 0:02:29]} 17. Qe2 {[%clk 0:01:54]}  Nxf3+ {[%clk 0:02:28]} 18. Bxf3 {[%clk 0:01:51]}  e5 {[%clk 0:02:26]} 19. Qc4 {[%clk 0:01:49]}  Qc7 {[%clk 0:02:23]} 20. Be3 {[%clk 0:01:48]}  Ne8 {[%clk 0:02:10]} 21. Rad1 {[%clk 0:01:44]}  Nd6 {[%clk 0:02:08]} 22. Qa6 {[%clk 0:01:39]}  Qb7 {[%clk 0:02:06]} 23. Qxb7 {[%clk 0:01:31]}  Nxb7 {[%clk 0:02:05]} 24. Be2 {[%clk 0:01:28]}  Rxd1 {[%clk 0:02:04]} 25. Rxd1 {[%clk 0:01:28]}  Rd8 {[%clk 0:02:04]} 26. Rxd8+ {[%clk 0:01:28]}  Nxd8 {[%clk 0:02:05]} 27. Kf1 {[%clk 0:01:27]}  Kf8 {[%clk 0:02:04]} 28. Ke1 {[%clk 0:01:27]}  Ke7 {[%clk 0:02:04]} 29. Bc4 {[%clk 0:01:27]}  Ne6 {[%clk 0:02:04]} 30. Kd2 {[%clk 0:01:25]}  f5 {[%clk 0:02:02]} 31. f3 {[%clk 0:01:21]}  fxe4 {[%clk 0:02:01]} 32. fxe4 {[%clk 0:01:20]}  Ng5 {[%clk 0:02:01]} 33. Bxg5+ {[%clk 0:01:19]}  hxg5 {[%clk 0:02:01]} 34. Bd5 {[%clk 0:01:17]}  Bh6 {[%clk 0:01:58]} 35. Ke2 {[%clk 0:01:16]}  g4 {[%clk 0:01:56]} 36. h4 {[%clk 0:01:14]}  Bc1 {[%clk 0:01:56]} 37. b3 {[%clk 0:01:14]}  Bb2 {[%clk 0:01:55]} 38. Kd3 {[%clk 0:01:14]}  Bc1 {[%clk 0:01:47]} 39. Bb7 {[%clk 0:01:11]}  Kf6 {[%clk 0:01:46]} 40. Bc8 {[%clk 0:01:10]}  Ke7 {[%clk 0:01:34]} 41. Bxg4 {[%clk 0:01:10]}  Kf6 {[%clk 0:01:33]} 42. Bc8 {[%clk 0:01:09]}  Ke7 {[%clk 0:01:33]} 43. Kc4 {[%clk 0:01:07]}  Be3 {[%clk 0:01:31]} 44. g4 {[%clk 0:01:04]}  Bf2 {[%clk 0:01:28]} 45. h5 {[%clk 0:01:04]}  gxh5 {[%clk 0:01:28]} 46. gxh5 {[%clk 0:01:05]}  Be3 {[%clk 0:01:28]} 47. Kd5 {[%clk 0:01:05]}  Bf4 {[%clk 0:01:24]} 48. Kc6 {[%clk 0:01:05]}  Kf6 {[%clk 0:01:19]} 49. b4 {[%clk 0:01:02]}  cxb4 {[%clk 0:01:14]} 50. cxb4 {[%clk 0:01:03]}  Bd2 {[%clk 0:01:14]} 51. b5 {[%clk 0:01:03]}  Ba5 {[%clk 0:01:12]} 52. Bf5 {[%clk 0:01:01]}  Kg5 {[%clk 0:01:13]} 53. Bg6 {[%clk 0:01:00]}  Kh6 {[%clk 0:01:13]} 54. Kb7 {[%clk 0:01:01]}  Kg5 {[%clk 0:01:11]} 55. Kxa7 {[%clk 0:01:01]}  Kh6 {[%clk 0:01:11]} 56. Kb7 {[%clk 0:01:02]}  Kg5 {[%clk 0:01:11]} 57. Kc6 {[%clk 0:01:03]}  Kh6 {[%clk 0:01:11]} 58. Kd5 {[%clk 0:01:03]}  Bc3 {[%clk 0:01:11]} 59. Be8 {[%clk 0:01:01]}  Kg5 {[%clk 0:01:10]} 60. Bf7 {[%clk 0:01:01]}  Kh6 {[%clk 0:01:10]} 61. a5 {[%clk 0:00:58]}  Bxa5 {[%clk 0:01:10]} 62. Kxe5 {[%clk 0:00:58]}  Bb4 {[%clk 0:01:05]} 63. Kd5 {[%clk 0:00:53]}  Kg7 {[%clk 0:01:06]} 64. Bg6 {[%clk 0:00:51]}  Bc5 {[%clk 0:01:05]} 65. e5 {[%clk 0:00:51]}  Bf2 {[%clk 0:01:02]} 66. Kc6 {[%clk 0:00:51]}  Bc5 {[%clk 0:00:59]} 67. Kd7 {[%clk 0:00:50]}  Kf8 {[%clk 0:00:58]} 68. e6 {[%clk 0:00:47]}  Bb4 {[%clk 0:00:55]} 69. h6 {[%clk 0:00:46]}  Bc5 {[%clk 0:00:51]} 70. Be4 {[%clk 0:00:41]}  Bb4 {[%clk 0:00:50]} 71. h7 {[%clk 0:00:41]}  Kg7 {[%clk 0:00:40]} 72. e7 {[%clk 0:00:41]} 1-0


[Site "https://www.chess.com"]

[Event "Titled Tuesday Blitz May 16 Late 2023"]
[White "Kejzar, Petra"]
[Black "Sivakumar, Shaaketh"]
[WhiteFideId "14610213"]
[BlackFideId "30940176"]
[WhiteElo "2089"]
[BlackElo "2174"]
[Result "0-1"]
[Round "03"]
[TimeControl "180+2"]
[Date "2023.05.16"]
[WhiteClock "0:00:40"]
[BlackClock "0:02:19"]

1. e4 {[%clk 0:03:00]}  e6 {[%clk 0:02:58]} 2. d4 {[%clk 0:03:00]}  d5 {[%clk 0:02:59]} 3. exd5 {[%clk 0:03:00]}  exd5 {[%clk 0:03:00]} 4. Bd3 {[%clk 0:03:01]}  Nc6 {[%clk 0:02:55]} 5. c3 {[%clk 0:03:00]}  Bd6 {[%clk 0:02:54]} 6. Qf3 {[%clk 0:03:00]}  Nge7 {[%clk 0:02:54]} 7. Ne2 {[%clk 0:02:58]}  h5 {[%clk 0:02:54]} 8. Bf4 {[%clk 0:02:57]}  Bg4 {[%clk 0:02:54]} 9. Qe3 {[%clk 0:02:53]}  Qd7 {[%clk 0:02:50]} 10. Bxd6 {[%clk 0:02:46]}  Qxd6 {[%clk 0:02:51]} 11. h3 {[%clk 0:02:46]}  Be6 {[%clk 0:02:49]} 12. Nd2 {[%clk 0:02:44]}  O-O-O {[%clk 0:02:50]} 13. Nb3 {[%clk 0:02:41]}  Nf5 {[%clk 0:02:46]} 14. Qd2 {[%clk 0:02:41]}  Kb8 {[%clk 0:02:42]} 15. O-O-O {[%clk 0:02:41]}  b6 {[%clk 0:02:41]} 16. Rhe1 {[%clk 0:02:39]}  f6 {[%clk 0:02:41]} 17. Nf4 {[%clk 0:02:38]}  Bc8 {[%clk 0:02:40]} 18. Qc2 {[%clk 0:02:28]}  Qxf4+ {[%clk 0:02:38]} 19. Kb1 {[%clk 0:02:28]}  Rhe8 {[%clk 0:02:35]} 20. Bb5 {[%clk 0:02:25]}  Rxe1 {[%clk 0:02:31]} 21. Rxe1 {[%clk 0:02:26]}  Nce7 {[%clk 0:02:30]} 22. a4 {[%clk 0:02:20]}  c6 {[%clk 0:02:28]} 23. Bd3 {[%clk 0:02:19]}  g6 {[%clk 0:02:25]} 24. Ka2 {[%clk 0:02:19]}  Qd6 {[%clk 0:02:25]} 25. a5 {[%clk 0:02:16]}  c5 {[%clk 0:02:22]} 26. dxc5 {[%clk 0:01:56]}  bxc5 {[%clk 0:02:22]} 27. Bf1 {[%clk 0:01:56]}  c4 {[%clk 0:02:21]} 28. Nd2 {[%clk 0:01:43]}  Qc5 {[%clk 0:02:21]} 29. Ra1 {[%clk 0:01:39]}  Qxa5+ {[%clk 0:02:20]} 30. Kb1 {[%clk 0:01:39]}  Qc5 {[%clk 0:02:20]} 31. Nf3 {[%clk 0:01:21]}  d4 {[%clk 0:02:18]} 32. cxd4 {[%clk 0:01:12]}  Nxd4 {[%clk 0:02:19]} 33. Nxd4 {[%clk 0:01:08]}  Qxd4 {[%clk 0:02:20]} 34. Be2 {[%clk 0:00:40]}  Bf5 {[%clk 0:02:19]} 0-1


[Site "https://www.chess.com"]

[Event "Titled Tuesday Blitz May 16 Late 2023"]
[White "Reprintsev, Alexander"]
[Black "Richter, Paul"]
[WhiteFideId "14100541"]
[BlackFideId "2046350"]
[WhiteElo "2218"]
[BlackElo "2539"]
[Result "1-0"]
[Round "03"]
[TimeControl "180+2"]
[Date "2023.05.16"]
[WhiteClock "0:00:18"]
[BlackClock "0:00:00"]

1. e4 {[%clk 0:03:00]}  c5 {[%clk 0:02:59]} 2. b3 {[%clk 0:03:00]}  e5 {[%clk 0:02:58]} 3. Bb2 {[%clk 0:03:00]}  d6 {[%clk 0:02:59]} 4. f4 {[%clk 0:02:55]}  exf4 {[%clk 0:03:00]} 5. Qf3 {[%clk 0:02:52]}  Qh4+ {[%clk 0:02:57]} 6. g3 {[%clk 0:02:51]}  fxg3 {[%clk 0:02:57]} 7. hxg3 {[%clk 0:02:51]}  Qg5 {[%clk 0:02:57]} 8. Bc4 {[%clk 0:02:41]}  Be6 {[%clk 0:02:53]} 9. Na3 {[%clk 0:02:33]}  Nc6 {[%clk 0:02:21]} 10. O-O-O {[%clk 0:02:31]}  O-O-O {[%clk 0:02:06]} 11. Rh5 {[%clk 0:02:25]}  Qg4 {[%clk 0:01:55]} 12. Bxe6+ {[%clk 0:02:15]}  Qxe6 {[%clk 0:01:56]} 13. Rf1 {[%clk 0:02:09]}  f6 {[%clk 0:01:54]} 14. Ne2 {[%clk 0:01:59]}  Ne5 {[%clk 0:01:46]} 15. Qh1 {[%clk 0:01:51]}  Nh6 {[%clk 0:01:36]} 16. Nf4 {[%clk 0:01:45]}  Qg4 {[%clk 0:01:31]} 17. Rh4 {[%clk 0:01:23]}  Qd7 {[%clk 0:01:26]} 18. Nc4 {[%clk 0:01:19]}  Nxc4 {[%clk 0:00:53]} 19. bxc4 {[%clk 0:01:18]}  Qa4 {[%clk 0:00:42]} 20. Qh3+ {[%clk 0:01:06]}  Kb8 {[%clk 0:00:40]} 21. d3 {[%clk 0:00:59]}  Qxa2 {[%clk 0:00:36]} 22. Rxh6 {[%clk 0:00:58]}  gxh6 {[%clk 0:00:34]} 23. Bxf6 {[%clk 0:00:59]}  Rg8 {[%clk 0:00:14]} 24. Bxd8 {[%clk 0:00:42]}  Bg7 {[%clk 0:00:15]} 25. Qd7 {[%clk 0:00:28]}  a6 {[%clk 0:00:15]} 26. Kd2 {[%clk 0:00:24]}  Be5 {[%clk 0:00:11]} 27. Ne2 {[%clk 0:00:23]}  Qb2 {[%clk 0:00:09]} 28. Bc7+ {[%clk 0:00:21]}  Ka8 {[%clk 0:00:08]} 29. Bxd6 {[%clk 0:00:22]}  Qb4+ {[%clk 0:00:07]} 30. Ke3 {[%clk 0:00:20]}  Bd4+ {[%clk 0:00:03]} 31. Nxd4 {[%clk 0:00:20]}  cxd4+ {[%clk 0:00:04]} 32. Kxd4 {[%clk 0:00:20]}  Qb2+ {[%clk 0:00:05]} 33. c3 {[%clk 0:00:20]}  Qe2 {[%clk 0:00:03]} 34. Rf7 {[%clk 0:00:19]}  Qb2 {[%clk 0:00:00]} 35. Bb4 {[%clk 0:00:18]} 1-0


[Site "https://www.chess.com"]

[Event "Titled Tuesday Blitz May 16 Late 2023"]
[White "Rodriguez Polo, Mateo"]
[Black "cristianserban1"]
[WhiteFideId "24509396"]
[WhiteElo "2117"]
[BlackElo "2525"]
[Result "1/2-1/2"]
[Round "03"]
[TimeControl "180+2"]
[Date "2023.05.16"]
[WhiteClock "0:00:14"]
[BlackClock "0:00:21"]

1. Nf3 {[%clk 0:02:57]}  d5 {[%clk 0:02:59]} 2. c4 {[%clk 0:02:56]}  e6 {[%clk 0:02:59]} 3. g3 {[%clk 0:02:56]}  c6 {[%clk 0:03:00]} 4. Bg2 {[%clk 0:02:56]}  dxc4 {[%clk 0:03:00]} 5. a4 {[%clk 0:02:55]}  Nf6 {[%clk 0:03:00]} 6. O-O {[%clk 0:02:52]}  Nbd7 {[%clk 0:02:25]} 7. Na3 {[%clk 0:02:52]}  Bxa3 {[%clk 0:02:24]} 8. Rxa3 {[%clk 0:02:50]}  b5 {[%clk 0:02:20]} 9. axb5 {[%clk 0:02:44]}  cxb5 {[%clk 0:02:20]} 10. d3 {[%clk 0:02:44]}  cxd3 {[%clk 0:02:18]} 11. Rxd3 {[%clk 0:02:45]}  Bb7 {[%clk 0:02:16]} 12. Ne5 {[%clk 0:02:40]}  Bxg2 {[%clk 0:02:15]} 13. Kxg2 {[%clk 0:02:40]}  Qc7 {[%clk 0:02:12]} 14. Nxd7 {[%clk 0:02:38]}  Nxd7 {[%clk 0:02:13]} 15. Bf4 {[%clk 0:02:34]}  Qb7+ {[%clk 0:02:13]} 16. f3 {[%clk 0:02:34]}  Nc5 {[%clk 0:02:07]} 17. Rc3 {[%clk 0:02:27]}  Na4 {[%clk 0:00:58]} 18. Rc7 {[%clk 0:02:25]}  Qd5 {[%clk 0:00:58]} 19. Qxd5 {[%clk 0:01:43]}  exd5 {[%clk 0:00:59]} 20. b3 {[%clk 0:01:44]}  Nb6 {[%clk 0:00:59]} 21. Be3 {[%clk 0:01:34]}  O-O {[%clk 0:00:52]} 22. Bxb6 {[%clk 0:01:30]}  axb6 {[%clk 0:00:53]} 23. Rd7 {[%clk 0:01:21]}  Ra2 {[%clk 0:00:52]} 24. Rxd5 {[%clk 0:01:13]}  Rxe2+ {[%clk 0:00:51]} 25. Kh3 {[%clk 0:01:13]}  Rc8 {[%clk 0:00:47]} 26. Rfd1 {[%clk 0:01:07]}  g6 {[%clk 0:00:38]} 27. Rxb5 {[%clk 0:01:05]}  Rcc2 {[%clk 0:00:36]} 28. Rxb6 {[%clk 0:00:53]}  h5 {[%clk 0:00:36]} 29. Kh4 {[%clk 0:00:46]}  Rxh2+ {[%clk 0:00:31]} 30. Kg5 {[%clk 0:00:46]}  Rc5+ {[%clk 0:00:24]} 31. Kh6 {[%clk 0:00:45]}  Rc8 {[%clk 0:00:20]} 32. Rd7 {[%clk 0:00:34]}  Rg2 {[%clk 0:00:18]} 33. Rc6 {[%clk 0:00:19]}  Rf8 {[%clk 0:00:18]} 34. Rxg6+ {[%clk 0:00:10]}  fxg6 {[%clk 0:00:18]} 35. Rg7+ {[%clk 0:00:10]}  Kh8 {[%clk 0:00:19]} 36. Rh7+ {[%clk 0:00:11]}  Kg8 {[%clk 0:00:20]} 37. Rg7+ {[%clk 0:00:12]}  Kh8 {[%clk 0:00:20]} 38. Rh7+ {[%clk 0:00:13]}  Kg8 {[%clk 0:00:21]} 39. Rg7+ {[%clk 0:00:14]} 1/2-1/2


[Site "https://www.chess.com"]

[Event "Titled Tuesday Blitz May 16 Late 2023"]
[White "Taboas Rodriguez, Daniel"]
[Black "Lopez Perdomo, Juan David"]
[WhiteFideId "2208466"]
[BlackFideId "4405137"]
[WhiteElo "2365"]
[BlackElo "1965"]
[Result "1-0"]
[Round "03"]
[TimeControl "180+2"]
[Date "2023.05.16"]
[WhiteClock "0:01:44"]
[BlackClock "0:01:45"]

1. d4 {[%clk 0:02:59]}  c5 {[%clk 0:02:59]} 2. Nf3 {[%clk 0:03:00]}  e6 {[%clk 0:02:59]} 3. e3 {[%clk 0:02:56]}  Nc6 {[%clk 0:02:55]} 4. Bd3 {[%clk 0:02:55]}  cxd4 {[%clk 0:02:56]} 5. exd4 {[%clk 0:02:55]}  d6 {[%clk 0:02:56]} 6. O-O {[%clk 0:02:56]}  Nf6 {[%clk 0:02:53]} 7. c4 {[%clk 0:02:53]}  b6 {[%clk 0:02:51]} 8. Nc3 {[%clk 0:02:53]}  a6 {[%clk 0:02:50]} 9. d5 {[%clk 0:02:52]}  Ne5 {[%clk 0:02:45]} 10. dxe6 {[%clk 0:02:44]}  Bxe6 {[%clk 0:02:42]} 11. Re1 {[%clk 0:02:30]}  Nxd3 {[%clk 0:02:36]} 12. Qxd3 {[%clk 0:02:31]}  Be7 {[%clk 0:02:36]} 13. Bf4 {[%clk 0:02:27]}  O-O {[%clk 0:02:34]} 14. Rad1 {[%clk 0:02:28]}  Qc7 {[%clk 0:02:31]} 15. b3 {[%clk 0:02:27]}  Rad8 {[%clk 0:02:31]} 16. Ng5 {[%clk 0:02:21]}  Bg4 {[%clk 0:02:24]} 17. Nd5 {[%clk 0:02:17]}  g6 {[%clk 0:02:15]} 18. Rxe7 {[%clk 0:02:12]}  Nxd5 {[%clk 0:02:12]} 19. Rxc7 {[%clk 0:02:06]}  Nxf4 {[%clk 0:02:12]} 20. Qe4 {[%clk 0:01:52]}  Rde8 {[%clk 0:01:50]} 21. Qxf4 {[%clk 0:01:51]}  Bxd1 {[%clk 0:01:51]} 22. h4 {[%clk 0:01:47]}  Re4 {[%clk 0:01:45]} 23. Nxe4 {[%clk 0:01:44]} 1-0


[Site "https://www.chess.com"]

[Event "Titled Tuesday Blitz May 16 Late 2023"]
[White "ritanovikova"]
[Black "Safin, Robert"]
[BlackFideId "34189120"]
[WhiteElo "2139"]
[BlackElo "2295"]
[Result "0-1"]
[Round "03"]
[TimeControl "180+2"]
[Date "2023.05.16"]
[WhiteClock "0:00:00"]
[BlackClock "0:00:21"]

1. e4 {[%clk 0:02:58]}  c6 {[%clk 0:02:59]} 2. d4 {[%clk 0:02:58]}  d5 {[%clk 0:03:00]} 3. Nd2 {[%clk 0:02:58]}  dxe4 {[%clk 0:03:00]} 4. Nxe4 {[%clk 0:02:59]}  Bf5 {[%clk 0:03:00]} 5. Ng3 {[%clk 0:02:59]}  Bg6 {[%clk 0:02:59]} 6. h4 {[%clk 0:03:00]}  h6 {[%clk 0:02:59]} 7. Nf3 {[%clk 0:03:00]}  Nd7 {[%clk 0:02:58]} 8. h5 {[%clk 0:03:01]}  Bh7 {[%clk 0:02:58]} 9. Bd3 {[%clk 0:03:02]}  Bxd3 {[%clk 0:02:58]} 10. Qxd3 {[%clk 0:03:02]}  e6 {[%clk 0:02:58]} 11. Bf4 {[%clk 0:03:00]}  Qa5+ {[%clk 0:02:57]} 12. Bd2 {[%clk 0:02:55]}  Qc7 {[%clk 0:02:56]} 13. c4 {[%clk 0:02:53]}  Ngf6 {[%clk 0:02:56]} 14. O-O-O {[%clk 0:02:45]}  b5 {[%clk 0:02:49]} 15. Kb1 {[%clk 0:02:39]}  bxc4 {[%clk 0:02:43]} 16. Qxc4 {[%clk 0:02:38]}  Bd6 {[%clk 0:02:43]} 17. Ne2 {[%clk 0:02:31]}  O-O {[%clk 0:02:42]} 18. Rc1 {[%clk 0:02:22]}  Rfc8 {[%clk 0:02:40]} 19. g4 {[%clk 0:02:17]}  Nxg4 {[%clk 0:02:21]} 20. Rhg1 {[%clk 0:02:08]}  Ndf6 {[%clk 0:02:22]} 21. Rxg4 {[%clk 0:01:46]}  Nxg4 {[%clk 0:02:08]} 22. d5 {[%clk 0:01:40]}  Ne5 {[%clk 0:01:51]} 23. Nxe5 {[%clk 0:01:39]}  Bxe5 {[%clk 0:01:52]} 24. dxe6 {[%clk 0:01:39]}  Rab8 {[%clk 0:01:52]} 25. b3 {[%clk 0:01:32]}  Rd8 {[%clk 0:01:44]} 26. Be3 {[%clk 0:01:18]}  Rd6 {[%clk 0:01:28]} 27. f4 {[%clk 0:01:12]}  Bf6 {[%clk 0:01:09]} 28. f5 {[%clk 0:01:11]}  Re8 {[%clk 0:01:01]} 29. Bf4 {[%clk 0:01:06]}  fxe6 {[%clk 0:01:01]} 30. Bxd6 {[%clk 0:00:36]}  Qxd6 {[%clk 0:01:00]} 31. fxe6 {[%clk 0:00:27]}  Qxe6 {[%clk 0:00:49]} 32. Qxe6+ {[%clk 0:00:27]}  Rxe6 {[%clk 0:00:50]} 33. Nf4 {[%clk 0:00:25]}  Rd6 {[%clk 0:00:46]} 34. Ng6 {[%clk 0:00:21]}  Rd2 {[%clk 0:00:41]} 35. Re1 {[%clk 0:00:20]}  Rb2+ {[%clk 0:00:40]} 36. Kc1 {[%clk 0:00:19]}  Rxa2 {[%clk 0:00:40]} 37. Re8+ {[%clk 0:00:18]}  Kf7 {[%clk 0:00:40]} 38. Rf8+ {[%clk 0:00:18]}  Ke6 {[%clk 0:00:40]} 39. Rc8 {[%clk 0:00:15]}  Ra6 {[%clk 0:00:40]} 40. Kc2 {[%clk 0:00:15]}  Kf5 {[%clk 0:00:40]} 41. Nf8 {[%clk 0:00:05]}  Kg5 {[%clk 0:00:39]} 42. Ne6+ {[%clk 0:00:04]}  Kxh5 {[%clk 0:00:38]} 43. Nc5 {[%clk 0:00:05]}  Ra2+ {[%clk 0:00:37]} 44. Kd3 {[%clk 0:00:05]}  Kg4 {[%clk 0:00:33]} 45. Rxc6 {[%clk 0:00:05]}  h5 {[%clk 0:00:32]} 46. Ne4 {[%clk 0:00:04]}  Kf5 {[%clk 0:00:27]} 47. Ng3+ {[%clk 0:00:03]}  Kg6 {[%clk 0:00:26]} 48. Rc5 {[%clk 0:00:02]}  h4 {[%clk 0:00:26]} 49. Nh5 {[%clk 0:00:02]}  Bg5 {[%clk 0:00:21]} 50. Nf4+ {[%clk 0:00:00]}  Bxf4 {[%clk 0:00:21]} 0-1


[Site "https://www.chess.com"]

[Event "Titled Tuesday Blitz May 16 Late 2023"]
[White "Jovic, Stanoje"]
[Black "Curtis, John"]
[WhiteFideId "905020"]
[BlackFideId "3200256"]
[WhiteElo "2236"]
[BlackElo "2203"]
[Result "1-0"]
[Round "03"]
[TimeControl "180+2"]
[Date "2023.05.16"]
[WhiteClock "0:00:36"]
[BlackClock "0:00:14"]

1. c4 {[%clk 0:03:00]}  Nf6 {[%clk 0:02:56]} 2. g3 {[%clk 0:03:00]}  g6 {[%clk 0:02:52]} 3. Bg2 {[%clk 0:03:00]}  Bg7 {[%clk 0:02:53]} 4. Nc3 {[%clk 0:03:01]}  O-O {[%clk 0:02:54]} 5. Nf3 {[%clk 0:03:01]}  d6 {[%clk 0:02:54]} 6. O-O {[%clk 0:03:01]}  c5 {[%clk 0:02:54]} 7. d4 {[%clk 0:03:01]}  cxd4 {[%clk 0:02:54]} 8. Nxd4 {[%clk 0:03:01]}  Na6 {[%clk 0:02:51]} 9. b3 {[%clk 0:02:58]}  Rb8 {[%clk 0:02:47]} 10. Bb2 {[%clk 0:02:57]}  Nc7 {[%clk 0:02:47]} 11. Rc1 {[%clk 0:02:57]}  Bd7 {[%clk 0:02:45]} 12. h3 {[%clk 0:02:56]}  Qc8 {[%clk 0:02:38]} 13. Kh2 {[%clk 0:02:55]}  Ne6 {[%clk 0:02:32]} 14. Nd5 {[%clk 0:02:50]}  Qd8 {[%clk 0:02:12]} 15. Nxf6+ {[%clk 0:02:49]}  Bxf6 {[%clk 0:02:09]} 16. Nxe6 {[%clk 0:02:46]}  fxe6 {[%clk 0:02:09]} 17. Bxf6 {[%clk 0:02:43]}  Rxf6 {[%clk 0:02:08]} 18. f4 {[%clk 0:02:42]}  b6 {[%clk 0:02:00]} 19. e4 {[%clk 0:02:39]}  Qc7 {[%clk 0:01:58]} 20. Qd4 {[%clk 0:02:31]}  Qc5 {[%clk 0:01:52]} 21. Rcd1 {[%clk 0:02:28]}  Qxd4 {[%clk 0:01:51]} 22. Rxd4 {[%clk 0:02:27]}  Be8 {[%clk 0:01:40]} 23. e5 {[%clk 0:02:22]}  dxe5 {[%clk 0:01:40]} 24. fxe5 {[%clk 0:02:22]}  Rxf1 {[%clk 0:01:40]} 25. Bxf1 {[%clk 0:02:22]}  Rc8 {[%clk 0:01:38]} 26. b4 {[%clk 0:02:14]}  a5 {[%clk 0:01:36]} 27. a3 {[%clk 0:02:13]}  axb4 {[%clk 0:01:34]} 28. axb4 {[%clk 0:02:12]}  Ra8 {[%clk 0:01:34]} 29. Rd2 {[%clk 0:01:50]}  Ra1 {[%clk 0:01:27]} 30. Bd3 {[%clk 0:01:45]}  Ra4 {[%clk 0:01:23]} 31. Rb2 {[%clk 0:01:43]}  Ra3 {[%clk 0:01:22]} 32. Bf1 {[%clk 0:01:34]}  Rc3 {[%clk 0:01:21]} 33. h4 {[%clk 0:01:16]}  Bc6 {[%clk 0:01:15]} 34. Bh3 {[%clk 0:01:12]}  Kf7 {[%clk 0:00:50]} 35. Rf2+ {[%clk 0:01:11]}  Rf3 {[%clk 0:00:50]} 36. Rxf3+ {[%clk 0:01:08]}  Bxf3 {[%clk 0:00:49]} 37. Kg1 {[%clk 0:01:05]}  Be2 {[%clk 0:00:39]} 38. Bf1 {[%clk 0:01:04]}  Bg4 {[%clk 0:00:36]} 39. Kf2 {[%clk 0:01:03]}  Ke8 {[%clk 0:00:36]} 40. Ke3 {[%clk 0:01:03]}  Kd7 {[%clk 0:00:36]} 41. Kd4 {[%clk 0:01:02]}  Kc7 {[%clk 0:00:34]} 42. c5 {[%clk 0:01:02]}  bxc5+ {[%clk 0:00:33]} 43. Kxc5 {[%clk 0:01:02]}  h6 {[%clk 0:00:33]} 44. Bc4 {[%clk 0:00:56]}  g5 {[%clk 0:00:31]} 45. b5 {[%clk 0:00:55]}  gxh4 {[%clk 0:00:28]} 46. gxh4 {[%clk 0:00:53]}  Kb7 {[%clk 0:00:28]} 47. Bd3 {[%clk 0:00:51]}  Kc7 {[%clk 0:00:25]} 48. b6+ {[%clk 0:00:50]}  Kb8 {[%clk 0:00:26]} 49. Be4 {[%clk 0:00:47]}  Bf5 {[%clk 0:00:24]} 50. Bf3 {[%clk 0:00:45]}  Bc2 {[%clk 0:00:16]} 51. Be2 {[%clk 0:00:39]}  Ba4 {[%clk 0:00:14]} 52. Bb5 {[%clk 0:00:37]}  Bxb5 {[%clk 0:00:14]} 53. Kxb5 {[%clk 0:00:37]}  Kb7 {[%clk 0:00:15]} 54. h5 {[%clk 0:00:35]}  Kb8 {[%clk 0:00:14]} 55. Kc6 {[%clk 0:00:34]}  Kc8 {[%clk 0:00:14]} 56. b7+ {[%clk 0:00:35]}  Kb8 {[%clk 0:00:14]} 57. Kd7 {[%clk 0:00:35]}  Kxb7 {[%clk 0:00:15]} 58. Kxe7 {[%clk 0:00:35]}  Kb6 {[%clk 0:00:14]} 59. Kxe6 {[%clk 0:00:36]} 1-0


[Site "https://www.chess.com"]